[Event "Czech Open-GM 2022"]
[Site "Pardubice"]
[Date "2022.07.25"]
[Round "4.34"]
[White "Baziuk, Vladyslav"]
[Black "Swicarz, Maciej"]
[Result "0-1"]
[ECO "B90"]
[WhiteElo "2078"]
[BlackElo "2335"]
[Annotator "TA"]
[PlyCount "122"]
[EventDate "2022.07.22"]
[EventType "swiss"]
[EventCountry "CZE"]
[SourceTitle "playchess.com"]
[Source "ChessBase"]
[SourceQuality "1"]
[TimeControl "40/5400+30:1800+30"]

{[%evp 21,122,7,30,0,0,0,25,0,0,1,16,-18,35,35,52,31,33,0,0,0,29,35,24,0,0,0,0,-26,0,0,0,0,0,0,22,0,0,0,0,0,5,15,27,17,34,16,29,0,0,0,0,-16,-15,-77,0,-23,0,-77,-35,-47,0,-105,-82,-99,-91,-97,0,-76,-44,-204,-204,-232,-114,-106,0,-214,-200,-201,-103,-110,0,-144,0,-87,-69,-81,0,-290,-307,-401,-28,-1474,-1453,-1437,-1469,-1460,-1408,-1376,-1360,-1356,-1309,-2373,-2166]} 1. e4 {[%emt 0:00:02]} c5 {[%emt 0:01:08]} 2. Nf3 {[%emt 0:00:15]} d6 {[%emt 0:00:03]} 3. d4 {[%emt 0:00:06]} cxd4 {[%emt 0:00:10]} 4. Nxd4 {[%emt 0:00:03]} Nf6 {[%emt 0:00:10]} 5. Nc3 {[%emt 0:00:02]} a6 {[%emt 0:00:06]} 6. f3 {[%emt 0:00:04]} e5 {[%emt 0:00:20]} 7. Nb3 {[%emt 0:00:02]} Be7 {[%emt 0:00:07]} 8. Be3 {[%emt 0:00:10]} Be6 {[%emt 0:00:02]} 9. Qd2 {[%emt 0:00:06]} h5 {[%emt 0:00:07]} 10. O-O-O {[%emt 0:00:11]} Nbd7 {[%emt 0:00:02]} 11. Kb1 {[%emt 0:00:10]} Rc8 $1 {[%emt 0:00:02][%mdl 4] is currently scoring better than 11...b5.} 12. Bd3 {[%emt 0:00:10] B90: Sicilian Najdorf: Unusual White 6th moves, 6 Be3 Ng4 and 6 Be3 e5.} Qc7 {[%emt 0:00:26]} 13. h3 {[%emt 0:00:08]} h4 {[%emt 0:00:03]} 14. f4 {[%emt 0:00:26] White has an edge.} b5 {[%emt 0:01:29]} 15. Rhe1 {[%emt 0:00:10]} O-O $1 {[%emt 0:00:35]} 16. g4 {[%emt 0:00:30][%cal Bg2g4,Bg4g5][%mdl 32] [#] Black must now prevent f5.} exf4 $146 {[%emt 0:01:15]} ({Black should try} 16... hxg3 $11 17. Rg1 Nc5) ({Predecessor:} 16... b4 17. Nd5 Nxd5 18. exd5 Bxd5 19. Bxa6 Be4 20. Bd3 Nf6 21. Rc1 Bxd3 22. Qxd3 Qc6 {½-½ (56) Pugh,J (2536)-Kitson,K (2557) ICCF email 2005}) 17. Bxf4 $14 {[%emt 0:02:32]} Ne5 {[%emt 0:00:03]} 18. Qg2 {[%emt 0:02:43] Against Nf3} Qb7 {[%emt 0:10:52][%cal Oc8c3] Inhibits Nd5.} 19. g5 {[%emt 0:01:59]} Nh5 {[%emt 0:01:49]} 20. Bc1 {[%emt 0:14:26]} g6 {[%emt 0:04:18][%cal Oc8c3]} (20... Rxc3 $5 21. bxc3 Qc8 $11) 21. Nd5 {[%emt 0:01:33]} Rfe8 {[%emt 0:05:37]} 22. Nd4 {[%emt 0:08:36]} Bxd5 {[%emt 0:12:04]} 23. exd5 {[%emt 0:00:14]} Bf8 {[%emt 0:00:40]} 24. Be4 {[%emt 0:09:36]} Bg7 {[%emt 0:03:59]} 25. Nc6 {[%emt 0:02:57]} Ng3 {[%emt 0:08:30]} 26. Bf3 {[%emt 0:00:53]} Nxf3 {[%emt 0:01:12]} 27. Qxf3 {[%emt 0:00:09]} Nf5 {[%emt 0:00:11]} 28. Re2 {[%emt 0:03:23]} Qb6 {[%emt 0:08:49]} 29. Rde1 {[%emt 0:04:08]} Rxe2 {[%emt 0:00:45]} 30. Qxe2 {[%emt 0:03:07]} Qc5 {[%emt 0:01:09]} 31. Qd3 {[%emt 0:03:35]} Kf8 {[%emt 0:11:51]} 32. a4 {[%emt 0:03:33]} Re8 {[%emt 0:04:45]} 33. Rxe8+ {[%emt 0:00:56]} Kxe8 {[%emt 0:00:04]} 34. axb5 {[%emt 0:01:21]} axb5 {[%emt 0:01:39]} 35. Bd2 {[%emt 0:01:24]} Kf8 {[%emt 0:06:04]} 36. Ka2 {[%emt 0:02:38]} Nd4 {[%emt 0:05:10]} 37. Nb4 {[%emt 0:03:04]} (37. Qe4 $11 {keeps the balance.}) 37... Nf5 $40 {[%emt 0:02:53][%mdl 128] Black mounts an attack.} (37... Be5 $17) 38. Nc6 $11 {[%emt 0:00:50]} Nd4 {[%emt 0:00:03]} (38... Bd4 $11 39. Qe4 Be3) 39. Nb4 $17 {[%emt 0:00:01]} Be5 {[%emt 0:00:44]} 40. Bc3 {[%emt 0:03:52]} Nf5 {[%emt 0:01:10]} (40... Qc4+ $15 41. Ka3 Ne2 42. Bxe5 dxe5) 41. Bd2 {[%emt 0:37:12]} (41. Bxe5 $1 $11 Qxb4 42. Bf6) 41... Qa7+ {[%emt 0:36:24]} 42. Kb1 {[%emt 0:00:15]} Qg1+ {[%emt 0:00:06]} 43. Ka2 {[%emt 0:00:08]} Qa7+ {[%emt 0:00:05]} 44. Kb1 {[%emt 0:00:00]} Qd4 {[%emt 0:00:15][%csl Ge5][%cal Rd4b2]} (44... Qf2 $5 {[%cal Re5f4]}) 45. c3 $2 {[%emt 0:02:21]} (45. Qxd4 $15 Nxd4 46. Nc6) 45... Qg1+ $19 {[%emt 0:01:24]} 46. Ka2 {[%emt 0:01:34]} Qa7+ {[%emt 0:01:47]} (46... Qd1 $19 {is more deadly.} 47. Qc2 Qh1) 47. Kb1 $17 {[%emt 0:00:01]} Qg1+ {[%emt 0:00:06]} (47... Qf2 $17 48. Nc6 Bf4 49. Bxf4 Qxf4) 48. Ka2 $1 $19 {[%emt 0:00:01]} Qd1 {[%emt 0:00:09]} 49. Qc2 {[%emt 0:00:43] [#]} Qf1 {[%emt 0:00:32]} (49... Qh1 $1 $19 {[%cal Rh1h3]} 50. Qd3 Bg3) 50. Qd3 $17 {[%emt 0:00:22]} Qd1 {[%emt 0:00:23]} 51. Qc2 $1 {[%emt 0:00:29]} Qf1 {[%emt 0:00:11] 0x0.00144ab569a4dp-1022s more active pieces.} ({Better is} 51... Qh1 52. Qd3 Bg3) 52. Qd3 {[%emt 0:00:01]} Qg2 {[%emt 0:00:26]} 53. Nc6 {[%emt 0:03:35]} Bg3 {[%emt 0:02:06]} (53... Kg8 $17) 54. Ka3 $2 {[%emt 0:07:15][%mdl 8192]} (54. c4 $11 {and White stays safe.} bxc4 55. Qc3) 54... Qxh3 $19 {[%emt 0:00:00]} 55. Qxb5 {[%emt 0:00:00] [#]} Qg2 $2 {[%emt 0:00:00]} (55... Qh1 $1 $19 {[%cal Rh1a1]} 56. Nb8 (56. Qb8+ $2 Kg7 $19) 56... Qa1+ 57. Kb3 Kg7) 56. Be3 $2 {[%emt 0:00:00][%mdl 8192]} Nxe3 {[%emt 0:00:00] Black is clearly winning.} 57. Qb8+ {[%emt 0:00:00]} Kg7 {[%emt 0:00:00]} 58. Ne7 {[%emt 0:00:00]} Nc4+ {[%emt 0:00:00]} 59. Ka4 {[%emt 0:00:00]} Qc2+ {[%emt 0:00:00]} 60. b3 {[%emt 0:00:00] [#]} Nb6+ $1 {[%emt 0:00:00][%mdl 512]} 61. Qxb6 {[%emt 0:00:00]} (61. Ka3 Qc1+) 61... Qe4+ {[%emt 0:00:00] Weighted Error Value: White=0.42/Black=0.40} 0-1

[Event "Czech Open-GM 2022"]
[Site "Pardubice"]
[Date "2022.07.25"]
[Round "4.35"]
[White "Vojta, Jakub"]
[Black "Jares, Michal"]
[Result "1/2-1/2"]
[ECO "B53"]
[WhiteElo "2326"]
[BlackElo "2208"]
[Annotator "TA"]
[PlyCount "69"]
[EventDate "2022.07.22"]
[EventType "swiss"]
[EventCountry "CZE"]
[SourceTitle "playchess.com"]
[Source "ChessBase"]
[SourceQuality "1"]
[TimeControl "40/5400+30:1800+30"]

{[%evp 9,69,0,0,0,5,0,0,-22,-25,-16,16,18,15,0,0,0,20,0,0,-13,40,40,27,30,33,29,36,29,56,45,62,55,76,56,94,94,98,104,97,97,113,113,115,108,97,96,95,90,85,62,47,29,81,82,91,31,23,1,0,0,9,-172]} 1. e4 {[%emt 0:00:02]} c5 {[%emt 0:00:08]} 2. Nf3 {[%emt 0:00:04]} d6 {[%emt 0:00:00]} 3. d4 cxd4 {[%emt 0:00:13]} 4. Qxd4 {[%emt 0:00:08]} Nf6 {[%emt 0:01:58]} 5. c4 {[%emt 0:11:56]} g6 {[%emt 0:04:32]} 6. Nc3 {[%emt 0:01:25] B53: Sicilian: 2...d6: Lines with Qxd4.} Bg7 {[%emt 0:00:54]} 7. h3 {[%emt 0:00:52]} O-O {[%emt 0:04:48]} 8. Be2 {[%emt 0:01:18]} Be6 {[%emt 0:09:17][%cal Of6d5]} 9. Qe3 {[%emt 0:05:22]} Nc6 {[%emt 0:03:41]} 10. O-O {[%emt 0:01:29]} Na5 {[%emt 0:04:45]} 11. Nd5 {[%emt 0:04:38]} Rc8 {[%emt 0:22:51]} 12. Nd2 {[%emt 0:02:51] [#]} a6 $146 {[%emt 0:03:51]} (12... Nc6 $5 {[%cal Rc6d4]}) ({Predecessor:} 12... Nd7 13. Rb1 Nc6 14. b3 Bd4 15. Qh6 Bg7 16. Qe3 Bd4 17. Qh6 Bg7 18. Qe3 {½-½ (18) Fercec,N (2415)-Skuhala,J (2378) Vodice 2022}) 13. a4 {[%emt 0:07:15]} Nc6 {[%cal Oc6d4]} 14. Rb1 {[%emt 0:04:04] [#]} a5 {[%emt 0:03:32]} (14... Nd4 $1 $11) 15. b3 $14 {[%emt 0:04:08]} Nd7 {[%emt 0:01:33]} 16. Bb2 {[%emt 0:04:44] Inhibits Bd4.} Bxb2 {[%emt 0:01:44]} 17. Rxb2 {[%emt 0:00:02]} Nc5 {[%emt 0:01:14]} 18. Nf3 {[%emt 0:08:35][%cal Bd2f3,Bf3d4,Bd4b5][%mdl 32]} Ne5 {[%emt 0:02:55]} 19. Nd4 {[%emt 0:02:20]} Bxd5 {[%emt 0:02:27]} 20. exd5 {[%emt 0:02:18]} Qb6 {[%emt 0:03:10]} 21. Nb5 {[%emt 0:07:15]} Ncd7 {[%emt 0:01:05]} 22. Qxb6 {[%emt 0:04:18]} Nxb6 {[%emt 0:00:02]} 23. f4 {[%emt 0:01:16]} Ned7 {[%emt 0:00:12]} 24. Bd1 {[%emt 0:03:18][%cal Be2d1,Bd1c2,Bc2b1][%mdl 32]} Nc5 {[%emt 0:01:33]} 25. Re2 {[%emt 0:00:02]} Rfe8 {[%emt 0:01:43]} 26. Bc2 {[%emt 0:00:04]} Nbd7 {[%emt 0:02:02]} 27. Rfe1 {[%emt 0:00:26][%cal Ob5d6] [#] And now Nxd6! would win. 0x0.001ebed54442dp-1022s more active pieces.} Kf8 {[%emt 0:00:49]} 28. Kf2 {[%emt 0:00:55]} Nb8 {[%emt 0:01:56]} 29. Kf3 {[%emt 0:01:03]} Nba6 {[%emt 0:00:32]} 30. Re3 {[%emt 0:02:08]} Nb4 {[%emt 0:00:29]} (30... Nc7 $11) 31. Bb1 $16 {[%emt 0:00:18]} Nba6 {[%emt 0:08:49]} 32. g4 {[%emt 0:00:27]} ({Better is} 32. Nd4 $16) 32... Nc7 $1 $14 {[%emt 0:00:47]} 33. Nd4 {[%emt 0:00:35]} e6 {[%emt 0:01:34]} 34. dxe6 {[%emt 0:01:15]} N5xe6 {[%emt 0:00:40] Pair of Knights!} 35. Ke4 $2 {Weighted Error Value: White=0.08 (flawless) /Black=0.11 (very precise)} (35. Nxe6+ $11 {and White has nothing to worry.} Nxe6 36. Rd1) 1/2-1/2

[Event "Czech Open-GM 2022"]
[Site "Pardubice"]
[Date "2022.07.25"]
[Round "4.36"]
[White "Mica, Marek"]
[Black "Jonsson, Gauti Pall"]
[Result "1/2-1/2"]
[ECO "E71"]
[WhiteElo "2304"]
[BlackElo "2071"]
[Annotator "TA"]
[PlyCount "81"]
[EventDate "2022.07.22"]
[EventType "swiss"]
[EventCountry "CZE"]
[SourceTitle "playchess.com"]
[Source "ChessBase"]
[SourceQuality "1"]
[TimeControl "40/5400+30:1800+30"]

{[%evp 10,81,48,29,42,27,46,29,33,30,43,42,53,55,93,37,56,37,41,34,52,50,45,43,64,66,77,62,77,52,52,48,56,0,0,0,47,44,124,121,229,240,220,201,195,155,143,96,97,82,45,0,0,0,74,74,74,74,74,74,74,60,60,54,69,0,0,0,0,0,0,0,0,0]} 1. d4 {[%emt 0:00:03]} Nf6 {[%emt 0:00:23]} 2. c4 {[%emt 0:00:08]} g6 {[%emt 0:00:21]} 3. Nc3 {[%emt 0:00:16]} Bg7 {[%emt 0:00:08]} 4. e4 {[%emt 0:00:17]} d6 {[%emt 0:00:20]} 5. h3 {[%emt 0:00:18]} O-O {[%emt 0:00:23]} 6. Be3 {[%emt 0:00:18]} Nc6 {[%emt 0:01:09] E71: King's Indian: 4 e4 d6 5 h3.} 7. d5 {[%emt 0:04:43]} Ne5 {[%emt 0:00:19]} 8. f4 Ned7 {[%emt 0:00:21] White has an edge.} 9. g4 {[%emt 0:01:25]} c6 {[%emt 0:00:32]} 10. Nge2 {[%emt 0:03:56]} cxd5 {[%emt 0:02:08]} 11. cxd5 {[%emt 0:00:30]} b6 {[%emt 0:01:58]} 12. Nd4 {[%emt 0:02:28] White is more active.} (12. Rc1 $16) 12... Nc5 $14 {[%emt 0:01:22]} 13. Qc2 {[%emt 0:05:10]} Bb7 {[%emt 0:02:48][%cal Oc5e4] And now ...Ncxe4! would win.} 14. Bg2 {[%emt 0:19:14]} Rc8 {[%emt 0:08:46] [#]} 15. O-O $146 {[%emt 0:04:10][%cal Od4c6]} ({Predecessor:} 15. Nc6 Bxc6 16. dxc6 Ne8 17. O-O Rxc6 18. e5 Rc8 19. Rad1 e6 20. Qd2 d5 21. g5 {½-½ (78) Koelle,T (2443)-Dobrikov,M (2234) Willingen 2022}) 15... e6 {[%emt 0:08:47]} 16. Rfe1 {[%emt 0:05:38]} exd5 {[%emt 0:03:55]} 17. exd5 {[%emt 0:00:21]} Re8 {[%emt 0:02:44][%cal Oe8e3]} 18. Bf2 {[%emt 0:03:12]} Qd7 {[%emt 0:01:55]} 19. Rxe8+ {[%emt 0:06:39]} Rxe8 {[%emt 0:01:55]} 20. b4 {[%emt 0:01:42]} (20. a3 {seems wilder.} Nxg4 21. hxg4 Qxg4 22. b4) 20... Na6 {[%emt 0:02:24]} 21. a3 {[%emt 0:01:57]} (21. Qb3 $14) 21... Nc7 $11 {[%emt 0:06:26]} 22. Qb3 {[%emt 0:01:20]} b5 {[%emt 0:00:24]} (22... h5 $11 23. g5 Nfxd5 24. Nxd5 (24. Bxd5 Nxd5 25. Nxd5 Bxd5 $11) 24... Nxd5 25. Bxd5 Bxd5 26. Qxd5 Qxh3) 23. Rc1 {[%emt 0:06:09]} Kh8 {[%emt 0:01:14]} ({Black should play} 23... h5 $14) 24. Nc6 $16 {[%emt 0:04:02]} Nxg4 {[%emt 0:05:08]} 25. hxg4 $18 {[%emt 0:00:38]} Qxg4 {[%emt 0:00:29]} 26. Qd1 {[%emt 0:03:46]} (26. Bxa7 $6 Qxf4 27. Qd1 Bc8 $16) 26... Qxf4 {[%emt 0:01:41]} 27. Nxa7 {[%emt 0:01:56] Pair of Knights!} (27. Bxa7 $6 Bc8 $16) 27... Re5 {[%emt 0:03:33]} (27... Be5 $2 28. Rc2 (28. Naxb5 Nxb5 29. Nxb5 Ba6 $11)) 28. Naxb5 {[%emt 0:02:49]} (28. Ncxb5 Rf5 29. Bd4 (29. Rxc7 Qxf2+ 30. Kh1 Be5 31. Rc8+ Bxc8 32. Nxc8 Rh5+) 29... Be5 30. Bxe5+ (30. Rxc7 $2 Qh2#) 30... dxe5 31. Nxc7 (31. Rxc7 Qe3+ 32. Kh2 Rf4 $19) 31... Qe3+ 32. Kh2 Rh5+ 33. Qxh5 Qf4+ 34. Kh3 gxh5 $17) (28. Nc6 $142 $1 {[%cal Rc6e5]} Rh5 29. Kf1 (29. Ne2 Qh2+ 30. Kf1 Rg5 $14)) 28... Nxb5 $16 {[%emt 0:05:02]} 29. Nxb5 {[%emt 0:00:33]} Rg5 {[%emt 0:04:10]} 30. Rc2 {[%emt 0:13:31] Threatens to win with Bd4.} ({Reject} 30. Rc7 Qe4 31. Qf1 Bxd5 32. Rc8+ Bf8 33. Rxf8+ Kg7 34. Rxf7+ Kh6 $17) (30. Nd4 $5 {[%cal Rd4f3]} Bxd5 31. Rc8+ Bf8 32. Rxf8+ Kg7 33. Ne6+ $1 {[%mdl 512]} Bxe6 34. Re8 $16) 30... Be5 {[%emt 0:03:57]} 31. Bd4 {[%emt 0:03:24]} Qh2+ {[%emt 0:01:56]} (31... Bxd5 $11 {remains equal.} 32. Bxe5+ dxe5 33. Qxd5 Qe3+ 34. Rf2 Qe1+ 35. Rf1 Qe3+ 36. Rf2 Qe1+ 37. Rf1 Qe3+ 38. Rf2) 32. Kf1 {[%emt 0:00:17]} Ba6 {[%emt 0:03:39] [#]} 33. Bxe5+ $1 {[%emt 0:00:11]} ({Much weaker is} 33. a4 Qf4+ 34. Kg1 Qh2+ 35. Kf1 Qf4+ 36. Kg1 Qh2+ 37. Kf1 $11) 33... Rxe5 {[%emt 0:04:29]} (33... Qxe5 $2 34. a4 $16) 34. a4 {[%emt 0:02:12] Strongly threatening Qd4.} Qf4+ {[%emt 0:01:37]} 35. Kg1 {[%emt 0:01:31]} Qxb4 {[%emt 0:01:08]} 36. Re2 {[%emt 0:01:48] Against Re1+} Qc5+ $1 {[%emt 0:00:49]} 37. Kh2 {[%emt 0:00:21]} ({Better is} 37. Rf2 $1 $14) 37... Rh5+ $11 {[%emt 0:01:02] The position is equal.} 38. Kg3 {[%emt 0:00:23] Hoping for Qa1+.} Rg5+ {[%emt 0:02:40]} 39. Kh2 {[%emt 0:00:07] aiming for Qa1+.} Rh5+ {[%emt 0:00:03]} 40. Kg3 {[%emt 0:01:34] Qa1+ is the strong threat.} Rg5+ {[%emt 0:00:47]} 41. Kh2 {Black defended with fortune.  Weighted Error Value: White=0.13 (very precise) /Black=0.15 (very precise)} 1/2-1/2

[Event "Czech Open-GM 2022"]
[Site "Pardubice"]
[Date "2022.07.25"]
[Round "4.37"]
[White "Soham Datar"]
[Black "Kokoszczynski, Jan"]
[Result "1-0"]
[ECO "C80"]
[WhiteElo "2111"]
[BlackElo "2297"]
[Annotator "TA"]
[PlyCount "77"]
[EventDate "2022.07.22"]
[EventType "swiss"]
[EventCountry "CZE"]
[SourceTitle "playchess.com"]
[Source "ChessBase"]
[SourceQuality "1"]
[TimeControl "40/5400+30:1800+30"]

{[%evp 13,77,52,64,21,22,18,16,0,0,0,6,0,52,31,80,61,125,0,-6,-81,-107,-123,-112,-111,-119,-116,-115,-124,-102,-104,-107,-133,-123,-123,-70,-118,-113,-113,-112,-152,-24,-26,-24,-20,-25,-31,-23,-88,-50,-35,-6,-16,23,19,24,26,63,55,711,0,0,0,29972,29974,29996,29997]} 1. e4 {[%emt 0:00:03]} e5 {[%emt 0:00:15]} 2. Nf3 {[%emt 0:00:05]} Nc6 {[%emt 0:00:20]} 3. Bb5 {[%emt 0:00:05][%cal Bf1b5,Bb5a4,Ba4b3][%mdl 32]} a6 {[%emt 0:00:28]} 4. Ba4 {[%emt 0:00:05]} Nf6 {[%emt 0:00:33]} 5. O-O {[%emt 0:00:06]} Nxe4 {[%emt 0:00:23]} 6. d4 {[%emt 0:00:11]} Be7 {[%emt 0:00:28]} 7. Re1 {[%emt 0:00:41]} b5 {[%emt 0:00:34]} 8. Bb3 {[%emt 0:00:04] C84: Closed Ruy Lopez: Unusual White 6th moves.} (8. Nxe5 Nxe5 9. Rxe4 Nc4 $11) (8. Rxe4 $5 {[%cal Ra4b3]} bxa4 9. d5 $14 (9. dxe5 O-O $14)) 8... d5 {[%emt 0:00:56]} 9. dxe5 {[%emt 0:00:07]} Be6 {[%emt 0:00:40]} 10. Nbd2 {[%emt 0:00:57] The position is equal.} Nc5 {[%emt 0:02:00]} 11. c3 {[%emt 0:00:26]} d4 {[%emt 0:05:03]} 12. Bc2 {[%emt 0:00:19]} dxc3 {[%emt 0:12:49]} (12... O-O $11) 13. bxc3 $14 {[%emt 0:00:16]} Nd3 {[%emt 0:00:29] [#]} (13... Qd7 $14) 14. Nd4 $146 {[%emt 0:24:15]} ({Predecessor:} 14. Re3 Nxc1 15. Rxc1 O-O 16. Be4 Qe8 17. Qc2 h6 18. Nd4 Nxd4 19. cxd4 Rd8 20. Bc6 {1-0 (41) Aitbayev,A (2380)-Sadykov,I (2173) Astana 2012}) 14... Ncxe5 {[%emt 0:31:39]} (14... Nxd4 $14 15. Bxd3 Nf5) 15. Nxe6 {[%emt 0:01:30]} (15. Re3 $16) 15... fxe6 $11 {[%emt 0:01:05]} 16. Rxe5 {[%emt 0:00:19]} Nxe5 $17 {[%emt 0:00:21]} 17. Qh5+ {[%emt 0:00:57]} Nf7 {[%emt 0:00:05]} 18. Be4 {[%emt 0:05:43]} Rb8 {[%emt 0:01:49]} 19. Nb3 {[%emt 0:02:14]} g6 {[%emt 0:03:12]} 20. Bc6+ {[%emt 0:01:30]} Kf8 {[%emt 0:00:02]} 21. Qe2 {[%emt 0:02:17]} Qd6 {[%emt 0:04:03]} 22. Be4 {[%emt 0:00:32]} Kg7 {[%emt 0:02:27]} 23. Be3 {[%emt 0:02:09]} Bf6 {[%emt 0:07:13]} ({Black should try} 23... Rhd8 $17 24. Nd4 Rb6) 24. Rd1 {[%emt 0:01:58]} (24. Bc2 $15) 24... Qe7 $1 {[%emt 0:00:38]} 25. Bc5 {[%emt 0:09:00]} Nd6 {[%emt 0:04:58]} 26. Nd4 {[%emt 0:06:25]} Qf7 {[%emt 0:01:20]} (26... Bxd4 $17 27. cxd4 Qf6) 27. Bc6 $1 $11 {[%emt 0:02:08] [#] This bishop pair is nice.} Rhe8 {[%emt 0:02:17]} 28. Bxe8 {[%emt 0:02:48]} Rxe8 {[%emt 0:00:03]} 29. Nc6 {[%emt 0:03:40]} Nc4 {[%emt 0:01:38]} 30. Rd3 {[%emt 0:00:32]} (30. a4 $11 {remains equal.}) 30... h5 {[%emt 0:03:11]} 31. g4 {[%emt 0:08:54]} hxg4 {[%emt 0:02:02]} 32. Qxg4 {[%emt 0:00:13]} Ne5 {[%emt 0:02:44]} 33. Nxe5 {[%emt 0:00:12]} Bxe5 {[%emt 0:00:01]} 34. Rf3 {[%emt 0:03:28] Inhibits Qf5.} Qd7 {[%emt 0:01:49]} 35. Qg5 {[%emt 0:02:14][%mdl 1024] White has compensation. White is more active.} Bd6 {[%emt 0:08:17][%mdl 8192]} (35... Qd5 {[#] gets mated.} 36. Bf8+ $1 {[%mdl 512]} Kh8 37. Qh6+ Kg8 38. Qxg6+ Kh8 39. Rh3#) (35... Qd1+ $14 36. Kg2 Qd5 37. Bf8+ Rxf8 38. Qe7+ Rf7 39. Qxf7+ Kh6) 36. Qf6+ $2 {[%emt 0:00:25]} (36. Bxd6 $18 {White wants to mate with Be5+.} cxd6 37. Rf6) 36... Kg8 {[%emt 0:00:02]} 37. Bd4 {[%emt 0:01:31][%csl Gd4][%cal Rf6h8]} Qh7 {[%emt 0:01:07][%mdl 8192] [#] Inhibits Qh8+.} (37... e5 $11 38. Rg3 (38. Qxg6+ Qg7 $15) 38... Qf7 39. Rxg6+ Kf8) 38. Rh3 $3 {[%emt 0:00:22][%mdl 512]} Rf8 {[%emt 0:01:41]} (38... Re7 39. Rxh7) 39. Qxe6+ {[%emt 0:00:09] Weighted Error Value: White=0.30/Black=0.54} 1-0

[Event "Czech Open-GM 2022"]
[Site "Pardubice"]
[Date "2022.07.25"]
[Round "4.38"]
[White "Brozka, Karel"]
[Black "Butkiewicz, Lukasz"]
[Result "1/2-1/2"]
[ECO "A61"]
[WhiteElo "2188"]
[BlackElo "2370"]
[Annotator "TA"]
[PlyCount "73"]
[EventDate "2022.07.22"]
[EventType "swiss"]
[EventCountry "CZE"]
[SourceTitle "playchess.com"]
[Source "ChessBase"]
[SourceQuality "1"]
[TimeControl "40/5400+30:1800+30"]

{[%evp 27,73,10,48,47,47,43,60,40,79,45,30,37,36,37,39,0,46,37,67,39,87,17,47,39,34,54,64,57,55,0,3,0,12,0,0,0,0,-4,0,0,0,0,4,4,4,4,4,4]} 1. d4 {[%emt 0:00:03]} Nf6 {[%emt 0:00:44]} 2. c4 {[%emt 0:00:15]} e6 {[%emt 0:00:05]} 3. Nf3 {[%emt 0:00:25]} c5 {[%emt 0:00:09]} 4. d5 {[%emt 0:00:18]} exd5 {[%emt 0:00:05]} 5. cxd5 {[%emt 0:00:15]} d6 {[%emt 0:00:04]} 6. Nc3 {[%emt 0:00:38]} g6 {[%emt 0:00:20]} 7. e4 {[%emt 0:00:16]} a6 {[%emt 0:00:09]} 8. a4 {[%emt 0:00:09]} Bg4 {[%emt 0:00:07]} 9. Be2 {[%emt 0:00:11]} Bxf3 {[%emt 0:00:09]} 10. Bxf3 {[%emt 0:00:06]} Bg7 {[%emt 0:00:10]} 11. O-O {[%emt 0:00:08]} O-O {[%emt 0:00:08]} 12. Bf4 {[%emt 0:00:32]} Qe7 {[%emt 0:01:56]} 13. Re1 {[%emt 0:00:26]} Nbd7 {[%emt 0:00:40]} 14. Qd2 {[%emt 0:00:15]} Rab8 {[%emt 0:28:08]} 15. Be2 {[%emt 0:05:08] A75: Modern Benoni: Classical: 9...a6 10 a4 Bg4.} Rfc8 {[%emt 0:01:52] [#]} 16. f3 $146 {[%emt 0:05:35]} ({Predecessor:} 16. a5 Ne8 17. Bg5 Bf6 18. Bxf6 Nexf6 19. f4 c4 20. Qd4 b5 21. axb6 Rxb6 22. Bf3 Nc5 {½-½ (79) Grigorov,G (2501)-Nabaty,T (2590) Sunny Beach 2012}) 16... Qf8 {[%emt 0:17:37]} 17. Be3 {[%emt 0:13:45] White is slightly better.} c4 {[%emt 0:02:06]} 18. a5 {[%emt 0:05:31] White is more active.} (18. Ba7 $5 {[%cal Ra7b8]}) 18... Nc5 $1 {[%emt 0:12:53]} 19. Bxc5 {[%emt 0:12:12]} Rxc5 {[%emt 0:00:39]} 20. Na4 {[%emt 0:00:10]} Rc7 {[%emt 0:00:44]} 21. Qb4 {[%emt 0:01:35]} Nh5 {[%emt 0:03:59]} (21... Nd7 $11 {deserves consideration.}) 22. g3 $14 {[%emt 0:14:45]} (22. Bxc4 Bd4+ 23. Kf1 (23. Kh1 $2 Ng3+ 24. hxg3 Qh6#) 23... Be5 $19) 22... Qe7 {[%emt 0:00:40]} 23. Rad1 {[%emt 0:11:09]} Re8 {[%emt 0:01:56]} (23... Be5 $14) 24. Kg2 {[%emt 0:06:21]} ({Of course not} 24. Bxc4 Qg5 25. Nb6 Nxg3 $1 $15) ({White should play} 24. f4 $16) 24... Qg5 {[%emt 0:04:33] Strongly threatening ...Be5.} 25. Qd2 $1 {[%emt 0:01:49]} (25. Bxc4 Be5 26. Kf2 {[#]} Nxg3 $1 {[%mdl 512]} 27. hxg3 Qxg3+ 28. Ke2 f5 $15) 25... Qxd2 {[%emt 0:00:07]} 26. Rxd2 {[%emt 0:00:03]} f5 {[%emt 0:00:06]} 27. exf5 $1 {[%emt 0:04:05]} gxf5 {[%emt 0:00:04]} 28. f4 {[%emt 0:02:31]} (28. Rb1 $14) 28... Nf6 $11 {[%emt 0:00:16][%cal Bh5f6,Bf6e4,Be4d2][%mdl 32] The position is equal.} 29. Nc3 {[%emt 0:06:01]} Ne4 {[%emt 0:09:51]} 30. Bf3 {[%emt 0:00:26][%cal Rf3e4]} Bxc3 {[%emt 0:04:16]} ({Don't play} 30... Nxd2 31. Rxe8+ Bf8 32. Rb8 $14) 31. bxc3 {[%emt 0:00:21]} Rc5 {[%emt 0:00:04]} 32. g4 {[%emt 0:06:50]} Nxd2 {[%emt 0:06:01]} 33. Rxe8+ {[%emt 0:00:07]} Kf7 {[%emt 0:00:00]} 34. Rb8 {[%emt 0:00:47]} Nxf3 {[%emt 0:00:05]} 35. Rxb7+ {[%emt 0:00:18]} Kg6 {[%emt 0:00:08]} 36. Kxf3 {[%emt 0:00:24] Threatening gxf5+.} Rxd5 {[%emt 0:00:05] Hoping for ...Rd3+.} 37. gxf5+ {[%emt 0:03:37] Weighted Error Value: White=0.16 (very precise) /Black=0.11 (very precise)} 1/2-1/2